Cogmind - Beta 11.1 @@@ ROGUE MODE // 2022.11.03 @ 19:50:52 Player: BRiNK Result: Destroyed by L-31 Rogue with Katana Performance ------------- Evolutions (1) 500 Regions Visited (2) 400 Robots Destroyed (29) 145 Value Destroyed (764) 764 Prototype IDs (1) 20 Alien Tech Used (0) 0 Bonus (0) 0 TOTAL SCORE: 1829 Bonus ------- None Cogmind --------- Core Integrity 0/400 Matter 300/300 Energy 100/100 System Corruption 0% Temperature Warm (164) Movement Core (700) Ox13 Location -9/Materials Parts ------- > --- POWER (2) -------- (None) > --- PROPULSION (2) --- (None) > --- UTILITY (2) ------ High-capacity Storage Unit Visual Processing Unit > --- WEAPON (3) ------- Small Laser > --- INVENTORY (20) --- Hover Unit Heat Sink Visual Processing Unit Signal Interpreter Transport Network Coupler Peak State ------------ > --- POWER ------------ Light Ion Engine Improved Ion Engine > --- PROPULSION ------- Aluminum Leg Aluminum Leg > --- UTILITY ---------- High-capacity Storage Unit Visual Processing Unit > --- WEAPON ----------- Light EM Pulse Cannon Improved Assault Rifle Mining Claw > --- INVENTORY -------- Hover Unit Heat Sink Visual Processing Unit Signal Interpreter Transport Network Coupler Small Laser Beam Rifle Heavy Assault Rifle [Rating: 15] Favorites ----------- Power Light Ion Engine Engine Light Ion Engine Propulsion Aluminum Leg Leg Aluminum Leg Utility Medium Matter Pod Device Structural Scanner Storage Medium Matter Pod Processor Visual Processing Unit Weapon Mining Claw Energy Gun Small Laser Energy Cannon Light EM Pulse Cannon Ballistic Gun Light Assault Rifle Launcher Grenade Launcher Slashing Weapon Mining Claw Build | -11 -10 -9 ------- Run | Scr Mat Mat Slots Evolved 2 | . . 2 Power 1 | . . 1 Propulsion . | . . . Utility . | . . . Weapon 1 | . . 1 Parts Attached 41 | 5 10 26 Power 10 | 1 1 8 Engine 10 | 1 1 8 Core . | . . . Reactor . | . . . Propulsion 10 | 2 4 4 Treads . | . . . Leg 10 | 2 4 4 Wheel . | . . . Hover . | . . . Flight . | . . . Utility 6 | . 2 4 Device 3 | . 1 2 Storage 2 | . 1 1 Processor 1 | . . 1 Hackware . | . . . Protection . | . . . Artifact . | . . . Weapon 15 | 2 3 10 Energy Gun 3 | 1 . 2 Energy Cannon 1 | . . 1 Ballistic Gun 7 | 1 1 5 Ballistic Cannon . | . . . Launcher 3 | . 1 2 Special Weapon . | . . . Impact Weapon . | . . . Slashing Weapon 1 | . 1 . Piercing Weapon . | . . . Special Melee Weapon . | . . . Unidentified Prototypes 1 | . . 1 Parts Lost 16 | . 1 15 Power 5 | . 1 4 Propulsion 3 | . . 3 Utility 2 | . . 2 Weapon 6 | . . 6 Highest Loss Streak 10 | . 1 10 To Critical Strikes . | . . . Average Slot Usage (%) 86 | . 78 94 Engine 14 | . 7 20 Leg 24 | . 28 21 Device 4 | . 6 3 Storage 9 | . 6 11 Processor 3 | . . 6 Energy Gun 1 | . 1 . Energy Cannon 2 | . . 5 Ballistic Gun 15 | . 18 13 Launcher 1 | . 1 1 Slashing Weapon 8 | . 5 10 Naked Turns . | . . . Heaviest Build 59 | 5 12 59 Greatest Support 20 | 20 20 20 Greatest Overweight (x) 5 | . . 5 Average Overweight (x) . | . . 1 Largest Inventory Capacity 20 | 5 5 20 Average Capacity 9 | 5 5 15 Most Carried 9 | 4 5 9 Average Carried 4 | 2 4 5 Final Capacity 20 | 5 5 20 Final Carried 5 | 3 4 5 Class Distribution -------------------- 58% | Mutant 41% | Scavenger-Mutant Dominant Class ---------------- Mutant | -10/Materials Scavenger-Mutant | -9/Materials Resources | -11 -10 -9 ----------- Run | Scr Mat Mat Matter Collected 966 | 258 233 475 Remotely . | . . . Salvage Created 1137 | . 262 875 Parts 71 | . 11 60 Haulers Intercepted 1 | . . 1 Recyclers Shooed 3 | . 2 1 Parts Field Recycled . | . . . Retrieved Matter . | . . . Parts Self-Destructed . | . . . Prevented . | . . . Kills | -11 -10 -9 ------- Run | Scr Mat Mat Combat Hostiles Destroyed 20 | . 6 14 Guns 15 | . 5 10 Cannons 3 | . . 3 AOE 2 | . 1 1 Classes Destroyed 8 | . 3 5 Worker 1 | . . 1 Tunneler 1 | . . 1 Hauler 1 | . . 1 Recycler 3 | . 1 2 Watcher 3 | . 1 2 Swarmer 2 | . . 2 Grunt 15 | . 6 9 Sentry 3 | . . 3 Best Kill Streak 5 | . 2 5 Combat Bots Only 5 | . 2 5 Max Kills in Single Turn 2 | . 1 2 Gunslinging . | . . . Exploded 1 | . 1 1 Melee . | . . . Uniques/NPCs Destroyed . | . . . Combat | -11 -10 -9 -------- Run | Scr Mat Mat Damage Taken 2222 | 87 402 1733 Core 525 | . 111 414 Absorbed by Shields . | . . . Regen/Repaired (Parts) 43 | . 43 . Core Remaining (%) 77 | 100 55 . Volleys Fired 116 | 8 33 75 Largest 3 | 2 2 3 Hottest 119 | 60 50 119 Shots Fired 164 | 16 41 107 Gun 134 | 16 36 82 Cannon 21 | . . 21 Launcher 9 | . 5 4 Special . | . . . Kinetic 121 | 8 36 77 Thermal 13 | 8 . 5 Explosive 9 | . 5 4 Electromagnetic 21 | . . 21 Robot Hit Streak 14 | 2 3 14 Robot Miss Streak 3 | 2 3 3 Penetration Max . | . . . Secondary Targets . | . . . Shots Hit Robots 99 | 8 20 71 Core Hits 53 | 2 13 38 Critical Kills . | . . . Critical Parts Destroyed . | . . . Critical Strikes . | . . . Melee Attacks . | . . . Impact . | . . . Slashing . | . . . Piercing . | . . . Sneak Attacks . | . . . Combat Hostiles . | . . . Follow-up Attacks . | . . . Damage Inflicted 1517 | 75 452 990 Guns 863 | 75 204 584 Cannons 261 | . . 261 Explosions 393 | . 248 145 Melee . | . . . Ramming . | . . . Kinetic 794 | 43 204 547 Thermal 150 | 32 . 118 Explosive 312 | . 248 64 Electromagnetic 261 | . . 261 Impact . | . . . Slashing . | . . . Piercing . | . . . Highest Corruption . | . . . Average Corruption . | . . . Corruption Purged . | . . . Corruption Blocked . | . . . Overload Shots . | . . . Overflow Damage 23 | . 8 15 Projectiles 15 | . . 15 Explosions 8 | . 8 . Melee . | . . . Knockbacks . | . . . Impact . | . . . Kinetic . | . . . Secondary . | . . . Self-Inflicted Damage . | . . . Shots . | . . . Rammed . | . . . Targets Rammed . | . . . Kicked . | . . . Crushed . | . . . Highest Temperature 218 | 64 9 218 Average Temperature 59 | 28 9 65 Received Heat Transfer 873 | 48 222 603 Effects 3 | . . 3 Interference 3 | . . 3 Siege Activations . | . . . Robots Corrupted . | . . . Combat Hostiles . | . . . Parts Fried . | . . . Impact Corruptions . | . . . Robots Melted . | . . . Combat Hostiles . | . . . Parts Melted . | . . . Heat Transferred 212 | 75 . 137 Parts Sabotaged . | . . . Parts Stolen . | . . . Parts Stripped . | . . . Power Chain Reactions 1 | . . 1 Missiles Intercepted . | . . . Alert | -11 -10 -9 ------- Run | Scr Mat Mat Peak Influence 370 | . 222 370 Initial 74 | . . 74 Average 174 | . 112 257 Maximum Alert Level 1 | . 1 1 Low Security (%) 50 | 100 81 15 Level 1 49 | . 18 84 Level 2 . | . . . Level 3 . | . . . Level 4 . | . . . Level 5 . | . . . High Security . | . . . Max Security . | . . . Squads Dispatched 10 | . 4 6 Investigation 3 | . 1 2 Extermination . | . . . Reinforcement 7 | . 3 4 Assault . | . . . Garrison . | . . . Intercept . | . . . Searches Triggered . | . . . Construction Impeded . | . . . Haulers Reinforced . | . . . Active Scanning Responses . | . . . Cargo Convoy Interrupts . | . . . Stealth | -11 -10 -9 --------- Run | Scr Mat Mat Distress Signals 3 | . . 3 Communications Jammed . | . . . Distress Signals . | . . . Times Spotted 40 | 1 15 24 Peak Tracking Total 8 | 1 4 8 Tactical Retreats 4 | . 4 . Traps | -11 -10 -9 ------- Run | Scr Mat Mat Traps Triggered 1 | . . 1 Indirectly . | . . . Trap Hack Attempts . | . . . Triggered . | . . . Disarmed . | . . . Reprogrammed . | . . . Reused . | . . . Traps Extracted . | . . . Installed . | . . . Triggered . | . . . Machines | -11 -10 -9 ---------- Run | Scr Mat Mat Machines Disabled 1 | . 1 . Max in Single Turn 1 | . 1 . Machines Sabotaged . | . . . Garrisons Compromised . | . . . Overloaded Fab Kills . | . . . Hacking | -11 -10 -9 --------- Run | Scr Mat Mat Machines Accessed 8 | . 3 5 Terminals 5 | . 1 4 Fabricators . | . . . Repair Stations 1 | . 1 . Recycling Units 2 | . 1 1 Scanalyzers . | . . . Garrison Access . | . . . Total Hacks 27 | . 9 18 Successful 17 | . 5 12 Failed 9 | . 4 5 Catastrophic . | . . . Database Lockouts 1 | . . 1 Manual . | . . . Terminals 13 | . 1 12 Fabricators . | . . . Repair Stations 5 | . 5 . Recycling Units 9 | . 3 6 Scanalyzers . | . . . Garrison Access . | . . . Terminal Hacks 7 | . . 7 Record 5 | . . 5 Maintenance Status 1 | . . 1 Zone Layout 1 | . . 1 Fabricator Hacks . | . . . Repair Station Hacks 3 | . 3 . Scan Component 2 | . 2 . Repair 1 | . 1 . Recycling Unit Hacks 7 | . 2 5 Recycle Component 1 | . . 1 Process 3 | . 1 2 Report Inventory 2 | . 1 1 Retrieve Components 1 | . . 1 Scanalyzer . | . . . Garrison Access Hacks . | . . . Unauthorized Hacks . | . . . Terminals . | . . . Fabricators . | . . . Repair Stations . | . . . Recycling Units . | . . . Scanalyzers . | . . . Garrison Access . | . . . Data Cores Recovered . | . . . Used . | . . . Hacking Detections 6 | . 3 3 Full Trace Events 2 | . 1 1 Feedback Events . | . . . Feedback Blocked . | . . . Robot Schematics Acquired . | . . . Robots Built . | . . . Authchips . | . . . Time . | . . . Total Robot Build Rating . | . . . Part Schematics Acquired . | . . . Parts Built . | . . . Authchips . | . . . Time . | . . . Total Part Build Rating . | . . . Parts Repaired 1 | . 1 . Time 26 | . 26 . Parts Recycled 1 | . . 1 Recycled Matter 150 | . 3 147 Retrieved Matter . | . . . Retrieved Components 1 | . . 1 Parts Scanalyzed . | . . . Part Schematics Acquired . | . . . Parts Damaged . | . . . Bothacking | -11 -10 -9 ------------ Run | Scr Mat Mat Used RIF Installer . | . . . Robots Hacked . | . . . Non-combat . | . . . Combat . | . . . Robot Hacks Applied . | . . . Relay Couplers Released . | . . . Fabnet Peak Effective % . | . . . Robots Rewired . | . . . Allies Hacked . | . . . Hacks Repelled . | . . . Allies | -11 -10 -9 -------- Run | Scr Mat Mat Total Allies . | . . . Largest Group . | . . . Highest-Rated Group . | . . . Highest-Rated Ally . | . . . Total Orders . | . . . Ally Attacks . | . . . Total Damage . | . . . Kills . | . . . Allies Corrupted . | . . . Allies Melted . | . . . Intel | -11 -10 -9 ------- Run | Scr Mat Mat Robot Analysis Total . | . . . Derelict Logs Recovered . | . . . Drone Launches . | . . . Drone Recoveries . | . . . Exploration | -11 -10 -9 ------------- Run | Scr Mat Mat Turns Passed 1682 | 119 751 812 Spaces Moved 910 | 86 543 281 Core 28 | 28 . . Treads . | . . . Legs 882 | 58 543 281 Wheels . | . . . Hover . | . . . Flight . | . . . Fastest Speed 50 | 50 120 120 Average Speed 144 | 97 120 204 Slowest Speed 470 | 120 120 470 Overloaded Moves . | . . . Propulsion Burnouts . | . . . Robots Hopped . | . . . Cave-ins Triggered . | . . . Exploration Rate (%) 24 | 6 37 29 Regions Visited 2 Branch Regions . Pre-discovered Areas . | . . . Known Exits Taken . | . . . Unknown Exits Taken 2 | 1 1 . Scrap Searched . | . . . Spaces Dug . | . . . Terrain Destroyed 62 | . 41 21 Melee . | . . . Projectile . | . . . AOE 62 | . 41 21 Terrain Rammed . | . . . Walls Destroyed . | . . . Machines Disabled . | . . . Actions | -11 -10 -9 --------- Run | Scr Mat Mat Total 1130 | 107 604 419 Wait 15 | 1 . 14 Move 908 | 85 542 281 Hop . | . . . Pick Up 31 | 8 11 12 Fast Attach 8 | . 1 7 Attach 16 | 5 4 7 Detach 1 | . 1 . Swap 17 | . 5 12 Drop 18 | . 7 11 Fire 116 | 8 33 75 Melee . | . . . Ram . | . . . Kick . | . . . Crush . | . . . Escape Stasis . | . . . Rewire . | . . . Trap . | . . . Miscellaneous . | . . . Route ------- -11/Scrapyard -10/Materials -9/Materials (discovered 1 exit: [*Min]) History --------- Turn | Location | Event 2 | -11/Scrapyard | Met Revision 17 94 | -11/Scrapyard | Discovered new exit (range 8) 120 | -11/Scrapyard | Entered Materials 307 | -10/Materials | Build established: Mutant 598 | -10/Materials | Discovered new exit (range 15) 831 | -10/Materials | Repaired Aluminum Leg? 871 | -10/Materials | Entered another Materials area 871 | -9/Materials | Evolved 2 slots: Power x1, Weapon x1 1055 | -9/Materials | Lost 3 parts (1p1n1w) 1338 | -9/Materials | Build established: Scavenger-Mutant 1419 | -9/Materials | Discovered new exit (range 18) 1498 | -9/Materials | Central database locked down 1638 | -9/Materials | Core integrity fell below 50% 1667 | -9/Materials | Core integrity fell below 20% 1683 | -9/Materials | Destroyed by L-31 Rogue with Katana Last Messages --------------- 01648_ Mining Claw destroyed. 01651_ Lgt. Ion Engine destroyed. 01651_ S-10 Pest destroyed. 01653_ Acquired 3 matter. 01660_ Acquired Lgt. Ion Engine. 01665_ Lgt. EM Pulse Cannon destroyed. 01666_ Faulty Imp. Assault Rifle destroyed. 01669_ Aluminum Leg destroyed. 01669_ G-34 Mercenary destroyed. 01672_ Overheating: System interference. 01672_ Beam Rifle temporarily disabled. 01672_ Hvy. Assault Rifle temporarily disabled. 01672_ Beam Rifle temporarily disabled. 01673_ Acquired 20 matter. 01675_ Hvy. Assault Rifle destroyed. 01678_ Imp. Ion Engine destroyed. 01680_ Aluminum Leg destroyed. 01682_ Beam Rifle destroyed. 01683_ Lgt. Ion Engine destroyed. [Achievement: First Step to Greatness] Map ----- +----------------------------------------------------+ | % # """ """ #???????????????????????????????? | | % ###########???????????????????????????????? | | = #???###T####??????????????????????????????? | | ## ##??# #??????????????????????????????? | | ##! !#??# #??????????????????????????????? | | ##! !#??# """ #??????????????????????????????? | | ###!!!!##??# """ #??????????#???????????????????? | | #########??# """ #????????? #???????????????????? | | #??????????# #???????? #???????????????????? | | ###############+########## #???????????????????? | | #???????????????????? | | #???????????????????? | | !%=% #???????????????????? | | ##########+###= #############??????????????? | | ?????? ?# # #??????????????? | | #???"" ?# # """ #??????????????? | | +?""" # + """""???????????????? | | ##?""" %# # """""???????????????? | | ##### #? # # """""???????????????? | | #????######? # # """ ???????????????? | | ???????????######## # #??????????????? | | ???????????# ?# #########+###??????????????? | | ???????????# # #?????### ###??????????????? | | ????????????? + o####### |#??????????????? | | ????????????????? # =% s%[ g ! #??????????????? | | ????????????????? # = ! @= T #??????????????? | | ???????????????? ?# g=l[ #??????????????? | | ????????????????#?#######+### #??????????????? | | ?????????????????????# [###+###??????????????? | | ?????????????????????# #??? ???????????????? | | ?????????????????????# """ #???? ?????????????? | | ?????????????????????# """ #?????? ????????????? | | ?????????????????????# """ #???????" #??????????? | | ?????????????????????# #???????? #??????????? | | ?????????????????????########????????????????????? | | ?????????????????????????????????????????????????? | | ?????????????????????????????????????????????????? | | ?????????????????????????????????????????????????? | | ?????????????????????????????????????????????????? | | ?????????????????????????????????????????????????? | | ?????????????????????????????????????????????????? | | ?????????????????????????????????????????????????? | | ?????????????????????????????????????????????????? | | ?????????????????????????????????????????????????? | | ?????????????????????????????????????????????????? | | ?????????????????????????????????????????????????? | | ?????????????????????????????????????????????????? | | ?????????????????????????????????????????????????? | | ?????????????????????????????????????????????????? | | ?????????????????????????????????????????????????? | +----------------------------------------------------+ Best States ------------- Heat Dissipation 50 Energy Generation 17 Energy Capacity 400 Matter Stores 400 Matter Capacity 400 Sight Range 18 Terrain Scan Density 10 Evasion (%) 55 Item Schematics ----------------- None Robot Schematics ------------------ None Fabricated ------------ Nothing Alien Tech Used ----------------- None Achievements -------------- Crack Shot First Step to Greatness Loot Pinata One Hack Too Far Part-time Mechanic Risk Taker Uninvited Guest Challenges ------------ None Game ------ Seed ThermalPoweredProtomatter Manual? 0 Play Time 01:07:30 Cumulative 2.2 hours Start 2022.11.02 @ 22:36:29 End 2022.11.03 @ 19:50:52 Sessions 3 Manual Loads 0 Difficulty Rogue Special Mode None Game No. 1 Rogue 1 Adventurer 0 Explorer 0 Win Type - Total 0 Types 0/0/0/0/0/0/0/0/0 Lore% 0 Gallery% 1 Achievement% 2 Wizard Run 0 Options --------- ASCII 0 Keyboard 0 Movement Mouse Keybinds 0 Fullscreen 1 Font 24/Crisp Map View 76x50 Tactical HUD 1 Map Filters NONE Filters NONE Steam 1 RUN: a03b4e07-d2ce-49a1-ac52-335336510c89